fUST/lending_fUST_20250601
["ID","MTS","AMOUNT","RATE_DAILY","PERIOD"]
[363599820,1748781040797,-430.0,0.00016712,2]
[363599822,1748781040807,-648.48,0.00016712,2]
[363599824,1748781040817,-591.3,0.00016712,2]
[363599826,1748781040826,-430.0,0.00016712,2]
[363599828,1748781040837,-430.0,0.00016712,2]
[363599830,1748781040846,-611.59,0.00016712,2]
[363599832,1748781040856,-430.0,0.00016712,2]
[363599834,1748781040867,-430.0,0.00016712,2]
[363599836,1748781040878,-430.0,0.00016712,2]
[363599838,1748781040888,-430.0,0.00016712,2]
[363599840,1748781040898,-430.0,0.00016712,2]
[363599842,1748781040909,-430.0,0.00016712,2]
[363599844,1748781040918,-430.0,0.00016712,2]
[363599846,1748781040928,-430.0,0.00016712,2]
[363599848,1748781040937,-430.0,0.00016712,2]
[363599850,1748781040947,-430.0,0.00016712,2]
[363599852,1748781040958,-430.0,0.00016712,2]
[363599854,1748781040968,-430.0,0.00016712,2]
[363599856,1748781040977,-430.0,0.00016712,2]
[363599858,1748781040986,-430.0,0.00016712,2]
[363599860,1748781040996,-430.0,0.00016712,2]
[363599862,1748781041005,-430.0,0.00016712,2]
[363599864,1748781041016,-430.0,0.00016712,2]
[363599866,1748781041026,-732.75,0.00016712,2]
[363599868,1748781041035,-430.0,0.00016712,2]
[363599870,1748781041045,-430.0,0.00016712,2]
[363599872,1748781041054,-430.0,0.00016712,2]
[363599874,1748781041064,-430.0,0.00016712,2]
[363599876,1748781041074,-430.0,0.00016712,2]
[363599878,1748781041083,-430.0,0.00016712,2]
[363599880,1748781041093,-430.0,0.00016712,2]
[363599882,1748781041102,-430.0,0.00016712,2]
[363599884,1748781041112,-430.0,0.00016712,2]
[363599886,1748781041124,-430.0,0.00016712,2]
[363599888,1748781041133,-647.88,0.00016712,2]
[363599890,1748781041144,-430.0,0.00016712,2]
[363599892,1748781041155,-430.0,0.00016712,2]
[363599894,1748781041164,-430.0,0.00016712,2]
[363599896,1748781041174,-531.04,0.00016712,2]
[363599898,1748781041183,-430.0,0.00016712,2]
[363599900,1748781041192,-430.0,0.00016712,2]
[363599902,1748781041202,-430.0,0.00016712,2]
[363599904,1748781041211,-430.0,0.00016712,2]
[363599906,1748781041220,-430.0,0.00016712,2]
[363599908,1748781041230,-430.0,0.00016712,2]
[363599910,1748781041240,-555.46,0.00016712,2]
[363599912,1748781041250,-430.0,0.00016712,2]
[363599914,1748781041260,-430.0,0.00016712,2]
[363599916,1748781041270,-721.44,0.00016712,2]
[363599918,1748781041279,-430.0,0.00016712,2]
[363599919,1748781041291,-430.0,0.00016712,2]
[363599920,1748781041305,-1029.71,0.00016712,2]
[363599921,1748781041318,-430.0,0.00016712,2]
[363599922,1748781041332,-430.0,0.00016712,2]
[363599923,1748781041346,-234.55748042,0.00016886,2]
[363599924,1748781041357,-430.0,0.00016986,2]
[363599925,1748781041368,-240.72,0.00016986,2]
[363599926,1748781041380,-491.56542967,0.00016986,2]
[363599927,1748781041398,-375.81680347,0.00016986,2]
[363599928,1748781041410,-430.0,0.00016986,2]
[363599929,1748781041423,-430.0,0.00016986,2]
[363599930,1748781041436,-430.0,0.00016986,2]
[363599931,1748781041448,-430.0,0.00016986,2]
[363599932,1748781041461,-461.02113522,0.00016986,2]
[363599933,1748781041473,-430.0,0.00016986,2]
[363599934,1748781041485,-430.0,0.00016986,2]
[363599936,1748781041496,-244.75107337,0.00016986,2]
[363599939,1748781041509,-430.0,0.00016986,2]
[363599941,1748781041522,-430.0,0.00016986,2]
[363599943,1748781041535,-430.0,0.00016986,2]
[363599945,1748781041546,-430.0,0.00016986,2]
[363599948,1748781041557,-430.0,0.00016986,2]
[363599950,1748781041570,-430.0,0.00016986,2]
[363599952,1748781041584,-430.0,0.00016986,2]
[363599955,1748781041595,-430.0,0.00016986,2]
[363599957,1748781041608,-430.0,0.00016986,2]
[363599959,1748781041620,-430.0,0.00016986,2]
[363599961,1748781041632,-430.0,0.00016986,2]
[363599964,1748781041644,-430.0,0.00016986,2]
[363599966,1748781041655,-430.0,0.00016986,2]
[363599968,1748781041664,-430.0,0.00016986,2]
[363599970,1748781041674,-430.0,0.00016986,2]
[363599972,1748781041685,-430.0,0.00016986,2]
[363599974,1748781041696,-537.28,0.00016986,2]
[363599976,1748781041706,-430.0,0.00016986,2]
[363599979,1748781041719,-430.0,0.00016986,2]
[363599981,1748781041731,-430.0,0.00016986,2]
[363599983,1748781041744,-430.0,0.00016986,2]
[363599985,1748781041755,-430.0,0.00016986,2]
[363599988,1748781041766,-430.0,0.00016986,2]
[363599990,1748781041779,-430.0,0.00016986,2]
[363599992,1748781041792,-430.0,0.00016986,2]
[363599995,1748781041803,-430.0,0.00016986,2]
[363599997,1748781041816,-430.0,0.00016986,2]
[363599999,1748781041829,-430.0,0.00016986,2]
[363600001,1748781041840,-430.0,0.00016986,2]
[363600003,1748781041850,-430.0,0.00016986,2]
[363600005,1748781041861,-430.0,0.00016986,2]
[363600007,1748781041874,-430.0,0.00016986,2]
[363600010,1748781041888,-430.0,0.00016986,2]
[363600012,1748781041899,-430.0,0.00016986,2]
[363600014,1748781041911,-430.0,0.00016986,2]
[363600016,1748781041924,-1896.3,0.00016986,2]
[363600019,1748781041937,-430.0,0.00016986,2]
[363600021,1748781041953,-430.0,0.00016986,2]
[363600023,1748781041964,-496.36,0.00016986,2]
[363600025,1748781041975,-430.0,0.00016986,2]
[363600028,1748781041986,-430.0,0.00016986,2]
[363600030,1748781041997,-1002.71,0.00016986,2]
[363600032,1748781042008,-2245.79,0.00016986,2]
[363600034,1748781042021,-1360.06,0.00016986,2]
[363600036,1748781042032,-430.0,0.00016986,2]
[363600039,1748781042043,-1717.0,0.00016986,2]
[363600041,1748781042053,-430.0,0.00016986,2]
[363600043,1748781042081,-430.0,0.00016986,2]
[363600045,1748781042092,-430.0,0.00016986,2]
[363600047,1748781042103,-430.0,0.00016986,2]
[363600049,1748781042115,-1423.19,0.00016986,2]
[363600051,1748781042127,-430.0,0.00016986,2]
[363600054,1748781042139,-430.0,0.00016986,2]
[363600056,1748781042150,-430.0,0.00016986,2]
[363600058,1748781042162,-430.0,0.00016986,2]
[363600060,1748781042174,-430.0,0.00016986,2]
[363600062,1748781042185,-430.0,0.00016986,2]
[363600064,1748781042196,-430.0,0.00016986,2]
[363600066,1748781042207,-430.0,0.00016986,2]
[363600069,1748781042220,-648.48,0.00016986,2]
[363600071,1748781042231,-591.3,0.00016986,2]
[363600073,1748781042242,-430.0,0.00016986,2]
[363600075,1748781042253,-611.59,0.00016986,2]
[363600078,1748781042266,-430.0,0.00016986,2]
[363600080,1748781042277,-430.0,0.00016986,2]
[363600082,1748781042288,-430.0,0.00016986,2]
[363600084,1748781042298,-430.0,0.00016986,2]
[363600086,1748781042310,-430.0,0.00016986,2]
[363600088,1748781042321,-430.0,0.00016986,2]
[363600090,1748781042334,-410.72916472,0.00016986,2]
[363600093,1748781042344,-430.0,0.00016986,2]
[363600095,1748781042356,-480.01,0.00016986,2]
[363600098,1748781042367,-430.0,0.00016986,2]
[363600100,1748781042378,-430.0,0.00016986,2]
[363600103,1748781042389,-430.0,0.00016986,2]
[363600106,1748781042400,-430.0,0.00016986,2]
[363600108,1748781042411,-430.0,0.00016986,2]
[363600111,1748781042423,-430.0,0.00016986,2]
[363600113,1748781042434,-430.0,0.00016986,2]
[363600115,1748781042445,-732.75,0.00016986,2]
[363600117,1748781042456,-357.87887871,0.00016986,2]
[363600119,1748781042467,-430.0,0.00016986,2]
[363600121,1748781042479,-430.0,0.00016986,2]
[363600123,1748781042490,-430.0,0.00016986,2]
[363600125,1748781042501,-430.0,0.00016986,2]
[363600128,1748781042512,-430.0,0.00016986,2]
[363600130,1748781042523,-430.0,0.00016986,2]
[363600132,1748781042534,-430.0,0.00016986,2]
[363600134,1748781042545,-647.88,0.00016986,2]
[363600136,1748781042556,-484.39,0.00016986,2]
[363600139,1748781042568,-430.0,0.00016986,2]
[363600142,1748781042579,-430.0,0.00016986,2]
[363600146,1748781042590,-531.04,0.00016986,2]
[363600148,1748781042601,-430.0,0.00016986,2]
[363600151,1748781042612,-430.0,0.00016986,2]
[363600153,1748781042623,-430.0,0.00016986,2]
[363600155,1748781042634,-430.0,0.00016986,2]
[363600157,1748781042644,-430.0,0.00016986,2]
[363600159,1748781042655,-555.46,0.00016986,2]
[363600161,1748781042667,-430.0,0.00016986,2]
[363600163,1748781042677,-430.0,0.00016986,2]
[363600165,1748781042688,-721.44,0.00016986,2]
[363600168,1748781042699,-430.0,0.00016986,2]
[363600170,1748781042710,-430.0,0.00016986,2]
[363600172,1748781042720,-1029.71,0.00016986,2]
[363600174,1748781042731,-430.0,0.00016986,2]
[363600176,1748781042742,-430.0,0.00016986,2]
[363600178,1748781042753,-152.0,0.00017145,2]
[363600180,1748781042763,-430.0,0.0001726,2]
[363600183,1748781042776,-430.0,0.0001726,2]
[363600185,1748781042787,-430.0,0.0001726,2]
[363600187,1748781042798,-158.19,0.0001726,2]
[363600189,1748781042808,-189.66,0.0001726,2]
[363600191,1748781042820,-430.0,0.0001726,2]
[363600194,1748781042832,-460.44,0.0001726,2]
[363600196,1748781042844,-430.0,0.0001726,2]
[363600213,1748781043002,-1896.3,0.0001726,2]
[363600216,1748781043018,-430.0,0.0001726,2]
[363600218,1748781043027,-496.36,0.0001726,2]
[363600220,1748781043038,-430.0,0.0001726,2]
[363600222,1748781043047,-268.32,0.0001726,2]
[363600224,1748781043057,-1002.71,0.0001726,2]
[363600226,1748781043067,-2245.79,0.0001726,2]
[363600228,1748781043076,-1360.06,0.0001726,2]
[363600230,1748781043086,-430.0,0.0001726,2]
[363600232,1748781043095,-1717.0,0.0001726,2]
[363600236,1748781043105,-430.0,0.0001726,2]
[363600238,1748781043114,-430.0,0.0001726,2]
[363600240,1748781043123,-1423.19,0.0001726,2]
[363600243,1748781043133,-222.57,0.0001726,2]
[363600245,1748781043142,-430.0,0.0001726,2]
[363600247,1748781043151,-430.0,0.0001726,2]
[363600250,1748781043162,-648.48,0.0001726,2]
[363600252,1748781043171,-591.3,0.0001726,2]
[363600254,1748781043181,-430.0,0.0001726,2]
[363600256,1748781043190,-611.59,0.0001726,2]
[363600258,1748781043200,-405.99,0.0001726,2]
[363600260,1748781043209,-280.62,0.0001726,2]
[363600262,1748781043218,-430.0,0.0001726,2]
[363600263,1748781043228,-171.78,0.0001726,2]
[363600266,1748781043237,-430.0,0.0001726,2]
[363600268,1748781043247,-430.0,0.0001726,2]
[363600270,1748781043256,-519.09,0.0001726,2]
[363600271,1748781043266,-430.0,0.0001726,2]
[363600273,1748781043275,-430.0,0.0001726,2]
[363600276,1748781043286,-164.92,0.0001726,2]
[363600278,1748781043296,-430.0,0.0001726,2]
[363600279,1748781043305,-732.75,0.0001726,2]
[363600282,1748781043315,-430.0,0.0001726,2]
[363600284,1748781043324,-487.11,0.0001726,2]
[363600285,1748781043334,-430.0,0.0001726,2]
[363600288,1748781043344,-466.8586314,0.0001726,2]
[363600290,1748781043355,-430.0,0.0001726,2]
[363600291,1748781043365,-322.72,0.0001726,2]
[363600293,1748781043375,-647.88,0.0001726,2]
[363600296,1748781043384,-430.0,0.0001726,2]
[363600297,1748781043395,-430.0,0.0001726,2]
[363600300,1748781043404,-531.04,0.0001726,2]
[363600302,1748781043414,-430.0,0.0001726,2]
[363600303,1748781043423,-430.0,0.0001726,2]
[363600305,1748781043433,-430.0,0.0001726,2]
[363600308,1748781043442,-430.0,0.0001726,2]
[363600310,1748781043452,-555.46,0.0001726,2]
[363600312,1748781043462,-721.44,0.0001726,2]
[363600314,1748781043471,-227.37,0.0001726,2]
[363600316,1748781043481,-405.45,0.0001726,2]
[363600318,1748781043492,-1029.71,0.0001726,2]
[363600320,1748781043502,-430.0,0.0001726,2]
[363600322,1748781043512,-430.0,0.0001726,2]
[363600324,1748781043522,-2317.38692068,0.00017445,2]
[363600326,1748781043531,-160.0,0.00017533,2]
[363600328,1748781043541,-430.0,0.00017534,2]
[363600330,1748781043551,-430.0,0.00017534,2]
[363600332,1748781043560,-430.0,0.00017534,2]
[363600334,1748781043570,-430.0,0.00017534,2]
[363600336,1748781043579,-430.0,0.00017534,2]
[363600338,1748781043589,-1896.3,0.00017534,2]
[363600340,1748781043599,-430.0,0.00017534,2]
[363600342,1748781043615,-496.36,0.00017534,2]
[363600344,1748781043628,-430.0,0.00017534,2]
[363600346,1748781043637,-1002.71,0.00017534,2]
[363600348,1748781043647,-2245.79,0.00017534,2]
[363600350,1748781043656,-1360.06,0.00017534,2]
[363600352,1748781043666,-430.0,0.00017534,2]
[363600354,1748781043675,-1717.0,0.00017534,2]
[363600356,1748781043684,-187.85,0.00017534,2]
[363600358,1748781043694,-430.0,0.00017534,2]
[363600360,1748781043703,-1423.19,0.00017534,2]
[363600362,1748781043714,-430.0,0.00017534,2]
[363600364,1748781043724,-430.0,0.00017534,2]
[363600366,1748781043733,-648.48,0.00017534,2]
[363600368,1748781043743,-591.3,0.00017534,2]
[363600370,1748781043753,-430.0,0.00017534,2]
[363600371,1748781043762,-611.59,0.00017534,2]
[363600373,1748781043772,-430.0,0.00017534,2]
[363600375,1748781043782,-430.0,0.00017534,2]
[363600376,1748781043792,-430.0,0.00017534,2]
[363600378,1748781043801,-430.0,0.00017534,2]
[363600380,1748781043811,-430.0,0.00017534,2]
[363600382,1748781043819,-732.75,0.00017534,2]
[363600384,1748781043830,-430.0,0.00017534,2]
[363600385,1748781043839,-430.0,0.00017534,2]
[363600387,1748781043849,-430.0,0.00017534,2]
[363600389,1748781043858,-647.88,0.00017534,2]
[363600391,1748781043868,-430.0,0.00017534,2]
[363600392,1748781043880,-430.0,0.00017534,2]
[363600394,1748781043890,-531.04,0.00017534,2]
[363600396,1748781043901,-430.0,0.00017534,2]
[363600398,1748781043911,-430.0,0.00017534,2]
[363600399,1748781043920,-430.0,0.00017534,2]
[363600401,1748781043930,-430.0,0.00017534,2]
[363600403,1748781043939,-555.46,0.00017534,2]
[363600405,1748781043948,-721.44,0.00017534,2]
[363600407,1748781043958,-1029.71,0.00017534,2]
[363600408,1748781043968,-548.24,0.00017534,2]
[363600410,1748781043978,-430.0,0.00017534,2]
[363600412,1748781043987,-430.0,0.00017808,2]
[363600414,1748781043999,-430.0,0.00017808,2]
[363600415,1748781044008,-430.0,0.00017808,2]
[363600417,1748781044017,-430.0,0.00017808,2]
[363600419,1748781044027,-430.0,0.00017808,2]
[363600421,1748781044036,-1896.3,0.00017808,2]
[363600422,1748781044046,-430.0,0.00017808,2]
[363600424,1748781044056,-496.36,0.00017808,2]
[363600426,1748781044065,-430.0,0.00017808,2]
[363600427,1748781044074,-1002.71,0.00017808,2]
[363600429,1748781044084,-2245.79,0.00017808,2]
[363600431,1748781044094,-1360.06,0.00017808,2]
[363600432,1748781044103,-374.56,0.00017808,2]
[363600434,1748781044113,-1717.0,0.00017808,2]
[363600436,1748781044123,-430.0,0.00017808,2]
[363600438,1748781044132,-1423.19,0.00017808,2]
[363600439,1748781044141,-430.0,0.00017808,2]
[363600441,1748781044150,-430.0,0.00017808,2]
[363600443,1748781044160,-648.48,0.00017808,2]
[363600445,1748781044170,-591.3,0.00017808,2]
[363600447,1748781044179,-430.0,0.00017808,2]
[363600448,1748781044188,-611.59,0.00017808,2]
[363600450,1748781044197,-430.0,0.00017808,2]
[363600452,1748781044206,-430.0,0.00017808,2]
[363600454,1748781044216,-430.0,0.00017808,2]
[363600455,1748781044226,-430.0,0.00017808,2]
[363600457,1748781044235,-225.43,0.00017808,2]
[363600459,1748781044244,-732.75,0.00017808,2]
[363600461,1748781044253,-430.0,0.00017808,2]
[363600463,1748781044262,-492.08,0.00017808,2]
[363600465,1748781044271,-430.0,0.00017808,2]
[363600466,1748781044280,-647.88,0.00017808,2]
[363600468,1748781044289,-430.0,0.00017808,2]
[363600470,1748781044299,-478.94,0.00017808,2]
[363600472,1748781044308,-531.04,0.00017808,2]
[363600474,1748781044316,-430.0,0.00017808,2]
[363600475,1748781044326,-430.0,0.00017808,2]
[363600477,1748781044335,-430.0,0.00017808,2]
[363600479,1748781044344,-430.0,0.00017808,2]
[363600481,1748781044353,-555.46,0.00017808,2]
[363600482,1748781044361,-721.44,0.00017808,2]
[363600484,1748781044370,-1029.71,0.00017808,2]
[363600486,1748781044379,-430.0,0.00017808,2]
[363600488,1748781044388,-171.94471898,0.00017827,2]
[363600490,1748781044398,-861.2,0.00018072,3]
[363600492,1748781044408,-430.6,0.00018072,3]
[363600493,1748781044416,-229.3709046,0.00018078,2]
[363600495,1748781044426,-160.0,0.00018078,2]
[363600497,1748781044435,-160.0,0.00018078,2]
[363600499,1748781044444,-423.51412927,0.00018078,2]
[363600501,1748781044454,-430.0,0.00018082,2]
[363600503,1748781044470,-430.0,0.00018082,2]
[363600504,1748781044480,-430.0,0.00018082,2]
[363600506,1748781044490,-430.0,0.00018082,2]
[363600508,1748781044500,-430.0,0.00018082,2]
[363600510,1748781044510,-1896.3,0.00018082,2]
[363600512,1748781044519,-385.92,0.00018082,2]
[363600514,1748781044529,-496.36,0.00018082,2]
[363600515,1748781044538,-430.0,0.00018082,2]
[363600517,1748781044548,-1002.71,0.00018082,2]
[363600519,1748781044558,-2245.79,0.00018082,2]
[363600521,1748781044568,-1360.06,0.00018082,2]
[363600523,1748781044578,-1717.0,0.00018082,2]
[363600525,1748781044587,-272.33,0.00018082,2]
[363600527,1748781044597,-1423.19,0.00018082,2]
[363600528,1748781044607,-430.0,0.00018082,2]
[363600530,1748781044617,-430.0,0.00018082,2]
[363600532,1748781044627,-648.48,0.00018082,2]
[363600534,1748781044637,-591.3,0.00018082,2]
[363600536,1748781044647,-430.0,0.00018082,2]
[363600538,1748781044656,-611.59,0.00018082,2]
[363600540,1748781044667,-487.66,0.00018082,2]
[363600542,1748781044677,-430.0,0.00018082,2]
[363600543,1748781044686,-430.0,0.00018082,2]
[363600545,1748781044696,-430.0,0.00018082,2]
[363600547,1748781044706,-732.75,0.00018082,2]
[363600549,1748781044715,-430.0,0.00018082,2]
[363600550,1748781044724,-430.0,0.00018082,2]
[363600552,1748781044734,-647.88,0.00018082,2]
[363600554,1748781044743,-430.0,0.00018082,2]
[363600556,1748781044753,-531.04,0.00018082,2]
[363600558,1748781044762,-221.35,0.00018082,2]
[363600560,1748781044771,-430.0,0.00018082,2]
[363600562,1748781044781,-430.0,0.00018082,2]
[363600564,1748781044790,-430.0,0.00018082,2]
[363600565,1748781044799,-555.46,0.00018082,2]
[363600567,1748781044808,-721.44,0.00018082,2]
[363600569,1748781044817,-1029.71,0.00018082,2]
[363600571,1748781044827,-430.0,0.00018082,2]
[363600573,1748781044836,-500.0,0.00018355,2]
[363600574,1748781044845,-1507.42581178,0.00018355,2]
[363600576,1748781044855,-1507.42581178,0.00018355,2]
[363600578,1748781044865,-500.0,0.00018355,2]
[363600580,1748781044879,-1507.42581178,0.00018355,2]
[363600582,1748781044890,-503.90434234,0.00018355,2]
[363600584,1748781044900,-1507.42581178,0.00018355,2]
[363600586,1748781044909,-1507.42581178,0.00018355,2]
[363600588,1748781044919,-1507.42581178,0.00018355,2]
[363600590,1748781044928,-1507.42581178,0.00018355,2]
[363600591,1748781044937,-1507.42581178,0.00018355,2]
[363600593,1748781044950,-1507.42581178,0.00018355,2]
[363600595,1748781044960,-1507.42581178,0.00018355,2]
[363600597,1748781044969,-1507.42581178,0.00018355,2]
[363600599,1748781044979,-1507.42581178,0.00018355,2]
[363600601,1748781044988,-1507.42581178,0.00018355,2]
[363600603,1748781044996,-430.0,0.00018356,2]
[363600604,1748781045006,-430.0,0.00018356,2]
[363600606,1748781045015,-3393.5,0.00018356,2]
[363600608,1748781045025,-3393.5,0.00018356,2]
[363600610,1748781045034,-3393.5,0.00018356,2]
[363600612,1748781045043,-430.0,0.00018356,2]
[363600614,1748781045052,-156.98,0.00018356,2]
[363600615,1748781045062,-430.0,0.00018356,2]
[363600617,1748781045072,-1896.3,0.00018356,2]
[363600619,1748781045083,-496.36,0.00018356,2]
[363600621,1748781045092,-470.15,0.00018356,2]
[363600623,1748781045102,-1002.71,0.00018356,2]
[363600625,1748781045112,-2245.79,0.00018356,2]
[363600627,1748781045121,-1360.06,0.00018356,2]
[363600629,1748781045131,-1717.0,0.00018356,2]
[363600630,1748781045140,-1423.19,0.00018356,2]
[363600632,1748781045150,-430.0,0.00018356,2]
[363600634,1748781045160,-430.0,0.00018356,2]
[363600636,1748781045169,-648.48,0.00018356,2]
[363600638,1748781045179,-591.3,0.00018356,2]
[363600640,1748781045188,-430.0,0.00018356,2]
[363600642,1748781045197,-611.59,0.00018356,2]
[363600643,1748781045207,-351.17,0.00018356,2]
[363600645,1748781045217,-430.0,0.00018356,2]
[363600647,1748781045226,-430.0,0.00018356,2]
[363600649,1748781045235,-732.75,0.00018356,2]
[363600651,1748781045245,-248.63,0.00018356,2]
[363600653,1748781045254,-430.0,0.00018356,2]
[363600655,1748781045264,-647.88,0.00018356,2]
[363600657,1748781045274,-430.0,0.00018356,2]
[363600658,1748781045283,-531.04,0.00018356,2]
[363600660,1748781045293,-430.0,0.00018356,2]
[363600662,1748781045302,-430.0,0.00018356,2]
[363600664,1748781045311,-430.0,0.00018356,2]
[363600666,1748781045320,-555.46,0.00018356,2]
[363600668,1748781045330,-721.44,0.00018356,2]
[363600669,1748781045339,-1029.71,0.00018356,2]
[363600671,1748781045349,-430.0,0.00018356,2]
[363600673,1748781045358,-234.55748039,0.00018586,2]
[363600675,1748781045367,-430.0,0.0001863,2]
[363600677,1748781045376,-430.0,0.0001863,2]
[363600679,1748781045386,-516.63,0.0001863,2]
[363600681,1748781045395,-430.0,0.0001863,2]
[363600683,1748781045405,-1896.3,0.0001863,2]
[363600684,1748781045415,-496.36,0.0001863,2]
[363600686,1748781045424,-1002.71,0.0001863,2]
[363600688,1748781045434,-2245.79,0.0001863,2]
[363600690,1748781045443,-1360.06,0.0001863,2]
[363600692,1748781045452,-1717.0,0.0001863,2]
[363600694,1748781045462,-1423.19,0.0001863,2]
[363600696,1748781045471,-430.0,0.0001863,2]
[363600697,1748781045480,-430.0,0.0001863,2]
[363600699,1748781045490,-648.48,0.0001863,2]
[363600701,1748781045499,-591.3,0.0001863,2]
[363600703,1748781045509,-430.0,0.0001863,2]
[363600705,1748781045519,-611.59,0.0001863,2]
[363600707,1748781045529,-430.0,0.0001863,2]
[363600709,1748781045539,-430.0,0.0001863,2]
[363600710,1748781045548,-732.75,0.0001863,2]
[363600712,1748781045558,-499.7,0.0001863,2]
[363600715,1748781045567,-647.88,0.0001863,2]
[363600718,1748781045576,-475.1198679,0.0001863,2]
[363600721,1748781045585,-531.04,0.0001863,2]
[363600722,1748781045595,-356.68,0.0001863,2]
[363600725,1748781045605,-430.0,0.0001863,2]
[363600728,1748781045614,-430.0,0.0001863,2]
[363600731,1748781045624,-555.46,0.0001863,2]
[363600733,1748781045634,-721.44,0.0001863,2]
[363600735,1748781045644,-1029.71,0.0001863,2]
[363600737,1748781045653,-430.0,0.0001863,2]
[363600739,1748781045663,-160.0,0.00018903,2]
[363600740,1748781045672,-430.0,0.00018904,2]
[363600742,1748781045682,-430.0,0.00018904,2]
[363600744,1748781045692,-430.0,0.00018904,2]
[363600746,1748781045702,-1896.3,0.00018904,2]
[363600748,1748781045712,-496.36,0.00018904,2]
[363600750,1748781045722,-1002.71,0.00018904,2]
[363600752,1748781045731,-2245.79,0.00018904,2]
[363600754,1748781045741,-1360.06,0.00018904,2]
[363600756,1748781045750,-1717.0,0.00018904,2]
[363600758,1748781045760,-1423.19,0.00018904,2]
[363600760,1748781045770,-430.0,0.00018904,2]
[363600762,1748781045781,-430.0,0.00018904,2]
[363600764,1748781045790,-648.48,0.00018904,2]
[363600765,1748781045800,-591.3,0.00018904,2]
[363600767,1748781045810,-430.0,0.00018904,2]
[363600769,1748781045819,-611.59,0.00018904,2]
[363600771,1748781045828,-155.64,0.00018904,2]
[363600773,1748781045837,-430.0,0.00018904,2]
[363600775,1748781045847,-732.75,0.00018904,2]
[363600777,1748781045856,-647.88,0.00018904,2]
[363600779,1748781045866,-531.04,0.00018904,2]
[363600780,1748781045882,-430.0,0.00018904,2]
[363600782,1748781045892,-260.37,0.00018904,2]
[363600784,1748781045902,-555.46,0.00018904,2]
[363600786,1748781045912,-721.44,0.00018904,2]
[363600788,1748781045922,-1029.71,0.00018904,2]
[363600790,1748781045931,-430.0,0.00018904,2]
[363600792,1748781045941,-430.0,0.00019178,2]
[363600794,1748781045952,-430.0,0.00019178,2]
[363600796,1748781045962,-430.0,0.00019178,2]
[363600797,1748781045971,-565.89121644,0.00019178,2]
[363600799,1748781045981,-430.0,0.00019178,2]
[363600801,1748781045990,-1896.3,0.00019178,2]
[363600803,1748781046000,-496.36,0.00019178,2]
[363600805,1748781046009,-1002.71,0.00019178,2]
[363600807,1748781046019,-2245.79,0.00019178,2]
[363600809,1748781046029,-1360.06,0.00019178,2]
[363600811,1748781046038,-1717.0,0.00019178,2]
[363600813,1748781046048,-1423.19,0.00019178,2]
[363600815,1748781046058,-270.31,0.00019178,2]
[363600816,1748781046067,-430.0,0.00019178,2]